Cogmind - Beta 16 @@@ ROGUE MODE // 2026.01.22 @ 19:20:09 Player: applejuice Result: Destroyed by H-71 Marshal with Heavy Mass Driver Performance ------------- Evolutions (6) 3000 Regions Visited (12) 2400 Robots Destroyed (129) 645 Value Destroyed (3685) 3685 Prototype IDs (11) 220 Alien Tech Used (0) 0 Bonus (-20) -20 TOTAL SCORE: 9930 Bonus ------- High Alert Combat Kills 11 Follower Combat Kills 53 Friendly Fire -84 Cogmind --------- Core Integrity 0/1150 Matter 105/300 Energy 100/100 System Corruption 2% Temperature Cool (0) Movement Hovering (46) Location -4/Factory Parts ------- > --- POWER (2) -------- Fusion Compressor > --- PROPULSION (5) --- Improved Linear Gravjet Combat Linear Gravjet > --- UTILITY (9) ------ Improved Signal Interpreter > --- WEAPON (3) ------- (None) > --- INVENTORY (5) ---- Tesla Rifle Tesla Rifle Phase Gun Peak State ------------ > --- POWER ------------ Light Nuclear Core Neutrino Core > --- PROPULSION ------- Wheel Wheel Wheel > --- UTILITY ---------- Medium Storage Unit High-capacity Matter Pod Improved Sensor Array Improved Signal Interpreter Advanced Targeting Computer Improved Transmission Jammer Hardened Medium Armor Plating Improved Medium Armor Plating > --- WEAPON ----------- Mini Assault Cannon Mini Assault Cannon Mini Assault Cannon > --- INVENTORY -------- Light Nuclear Core Light Nuclear Core Wheel Nuclear Pulse Thruster Hacking Suite Tesla Rifle Tesla Rifle Tesla Rifle Heavy Rocket Launcher Heavy Flail [Rating: 55] Favorites ----------- Power Light Nuclear Core Engine Ion Engine Power Core Light Nuclear Core Reactor Light Particle Reactor Propulsion Wheel Treads Light Treads Leg Aluminum Leg Wheel Wheel Hover Unit Combat Linear Gravjet Flight Unit Nuclear Pulse Thruster Utility Medium Storage Unit Device Improved Sensor Array Storage Medium Storage Unit Processor Improved Signal Interpreter Hackware System Shield Protection Hardened Medium Armor Plating Weapon Minigun Energy Gun Shock Rifle Energy Cannon Cooled Particle Cannon Ballistic Gun Minigun Ballistic Cannon Mini Assault Cannon Launcher Grenade Launcher Special Weapon Mining Laser Impact Weapon Heavy Flail Slashing Weapon Greatsword Build | -11 -10 -9 -8 -7 -7 -7 -5 -5 -5 -4 -4 -4 ------- Run | Yrd Mat Mat Mat Fac Sto Rec Fac Upp Upp Fac Was Fac Slots Evolved 12 | . . 2 2 2 . . 4 . . 2 . . Power 1 | . . . . . . . 1 . . . . . Propulsion 3 | . . 1 . . . . . . . 2 . . Utility 7 | . . 1 1 2 . . 3 . . . . . Weapon 1 | . . . 1 . . . . . . . . . Parts Attached 125 | 7 4 30 17 9 28 2 15 2 . 6 4 1 Power 13 | 1 . 4 2 1 1 . 2 . . 1 1 . Engine 5 | 1 . 4 . . . . . . . . . . Core 7 | . . . 2 1 1 . 2 . . 1 . . Reactor 1 | . . . . . . . . . . . 1 . Propulsion 31 | 2 . 10 5 1 6 . 2 . . 3 1 1 Treads 2 | . . . . . 2 . . . . . . . Leg 6 | 2 . 2 2 . . . . . . . . . Wheel 17 | . . 8 3 1 4 . 1 . . . . . Hover 2 | . . . . . . . . . . . 1 1 Flight 4 | . . . . . . . 1 . . 3 . . Utility 42 | 2 1 7 5 3 8 2 10 1 . 1 2 . Device 20 | 1 1 3 1 1 6 . 4 . . 1 2 . Storage 3 | 1 . 1 . 1 . . . . . . . . Processor 6 | . . 1 2 . . 1 2 . . . . . Hackware 4 | . . . . . . . 3 1 . . . . Protection 9 | . . 2 2 1 2 1 1 . . . . . Artifact . | . . . . . . . . . . . . . Weapon 39 | 2 3 9 5 4 13 . 1 1 . 1 . . Energy Gun 14 | 1 1 2 2 2 4 . 1 1 . . . . Energy Cannon 3 | . . 1 . . 2 . . . . . . . Ballistic Gun 10 | 1 . 5 2 . 2 . . . . . . . Ballistic Cannon 4 | . . . . . 4 . . . . . . . Launcher 4 | . 1 . 1 1 1 . . . . . . . Special Weapon 1 | . 1 . . . . . . . . . . . Impact Weapon 2 | . . 1 . 1 . . . . . . . . Slashing Weapon 1 | . . . . . . . . . . 1 . . Piercing Weapon . | . . . . . . . . . . . . . Special Melee Weapon . | . . . . . . . . . . . . . Unidentified Prototypes 11 | . . . 1 1 7 . 1 . . . 1 . Parts Lost 66 | . . 17 10 . 11 . 20 . . 6 . 2 Power 10 | . . 3 1 . 1 . 4 . . . . 1 Propulsion 20 | . . 6 4 . 2 . 5 . . 3 . . Utility 23 | . . 3 2 . 6 . 9 . . 2 . 1 Weapon 13 | . . 5 3 . 2 . 2 . . 1 . . Highest Loss Streak 12 | . . 6 6 . 3 . 12 . . 4 . 2 To Critical Strikes . | . . . . . . . . . . . . . Average Backups 7 | 1 5 7 6 7 9 10 6 2 2 2 4 4 Power 1 | . 1 . 1 1 1 2 1 . . . 1 . Propulsion . | . . . . . . 2 1 . . . . . Utility 1 | . . 2 1 1 1 1 . . . . . . Weapon 3 | . 2 3 3 3 4 5 3 2 2 2 3 3 Tool/Special . | . . . . . . . . . . . . . Unused Backups 9 | . . 3 1 1 1 . 2 . . . . 1 Power . | . . . . . . . . . . . . . Propulsion . | . . . . . . . . . . . . . Utility . | . . . . . . . . . . . . . Weapon 9 | . . 3 1 1 1 . 2 . . . . 1 Tool/Special . | . . . . . . . . . . . . . Average Slot Usage (%) 81 | . 100 90 89 98 91 99 59 12 17 20 19 23 Engine 3 | . 14 10 4 . . . . . . . . . Core 3 | . . . 4 7 6 7 6 . . 1 . 2 Leg 3 | . 28 6 1 . . . . . . . . . Wheel 14 | . . 18 19 22 16 23 8 . . . . . Device 9 | . 14 5 10 15 15 11 7 . . 2 1 1 Storage 10 | . 14 11 9 14 15 15 6 . . . . . Processor 7 | . . 10 9 7 7 10 7 5 5 5 5 5 Hackware 1 | . . . . . . . 2 6 11 8 5 3 Protection 4 | . . 4 4 7 4 6 4 . . . . . Energy Gun 5 | . 12 4 4 14 9 . . . . . . . Energy Cannon 2 | . . 3 . . 6 . . . . . . . Ballistic Gun 7 | . 14 13 21 6 2 . . . . . . . Ballistic Cannon 3 | . . . . . 1 23 9 . . . . . Peak Build Rating 55 | 7 7 16 23 40 47 38 55 13 13 25 38 46 Average Rating 24 | 5 6 11 19 31 38 37 34 8 13 17 27 31 On Entrance 18 | . 7 7 15 22 40 38 38 7 13 13 11 29 Avg Prop Armor Cover (%) 9 | . . . 9 . . . . . . . . . Naked Turns 1 | . . . . . . . 1 . . . . . Heaviest Build 62 | 14 16 31 39 43 49 41 62 . . 6 15 20 Greatest Support 44 | 20 20 42 42 44 44 30 30 3 3 7 14 24 Greatest Overweight (x) 11 | 4 . 2 8 2 11 1 5 . . 1 1 1 Average Overweight (x) . | . . . . . . 1 . . . . . . Largest Inventory Capacity 10 | 8 8 10 10 10 10 10 10 5 5 5 5 5 Average Capacity 9 | 7 8 9 10 10 10 10 7 5 5 5 5 5 Most Carried 10 | 3 7 10 10 10 10 10 10 2 2 4 5 5 Average Carried 7 | 1 5 7 7 7 9 10 6 1 2 2 4 4 Final Capacity 10 | 8 8 10 10 10 10 10 5 5 5 5 5 5 Final Carried 10 | 3 7 10 5 10 10 10 2 2 2 4 5 3 Class Distribution -------------------- 30% | Mutant 18% | Skirmisher 16% | Scavenger-Mutant 13% | Scavenger-Skirmisher 5% | Hacker-Mutant 5% | Tank 5% | Commander-Skirmisher Dominant Class ---------------- Mutant | -10/Materials Scavenger-Mutant | -9/Materials Scavenger-Skirmisher | -8/Materials Skirmisher | -7/Factory Skirmisher | -7/Storage Commander-Skirmisher | -7/Recycling Scavenger-Tank | -5/Factory Mutant | -5/Upper Caves Hacker-Mutant | -5/Upper Caves Hacker-Mutant | -4/Factory Mutant | -4/Waste Mutant | -4/Factory Resources | -11 -10 -9 -8 -7 -7 -7 -5 -5 -5 -4 -4 -4 ----------- Run | Yrd Mat Mat Mat Fac Sto Rec Fac Upp Upp Fac Was Fac Matter Collected 3351 | 189 152 978 665 18 882 18 358 31 60 . . . Remotely 185 | . . 134 51 . . . . . . . . . Salvage Created 4945 | 164 193 1645 665 74 1825 . 379 . . . . . Parts 259 | 14 12 102 26 2 92 . 11 . . . . . Haulers Intercepted 5 | . . 3 . . 2 . . . . . . . Recyclers Shooed 10 | . 1 7 . . 1 . 1 . . . . . Parts Field Recycled . | . . . . . . . . . . . . . Retrieved Matter . | . . . . . . . . . . . . . Parts Self-Destructed . | . . . . . . . . . . . . . Prevented . | . . . . . . . . . . . . . Parts Restored . | . . . . . . . . . . . . . Kills | -11 -10 -9 -8 -7 -7 -7 -5 -5 -5 -4 -4 -4 ------- Run | Yrd Mat Mat Mat Fac Sto Rec Fac Upp Upp Fac Was Fac Combat Hostiles Destroyed 76 | . 6 25 10 4 25 . 6 . . . . . Melee 1 | . . . . . 1 . . . . . . . Guns 44 | . 2 15 10 1 16 . . . . . . . Cannons 18 | . . 6 . . 6 . 6 . . . . . AOE 13 | . 4 4 . 3 2 . . . . . . . Classes Destroyed 13 | 3 3 4 1 . 2 . . . . . . . Worker 14 | 2 1 5 . . 5 . 1 . . . . . Builder 7 | . . 1 . . 5 . 1 . . . . . Tunneler 5 | 3 . 2 . . . . . . . . . . Hauler 5 | . . 3 . . 2 . . . . . . . Recycler 11 | 1 1 4 1 . 3 . 1 . . . . . Mechanic 1 | . . 1 . . . . . . . . . . Watcher 10 | . 1 4 1 1 2 . 1 . . . . . Swarmer 14 | . 3 7 . 4 . . . . . . . . Grunt 34 | . 3 11 7 . 12 . 1 . . . . . Duelist 2 | . . . 1 . . . 1 . . . . . Sentry 19 | . . 7 2 . 8 . 2 . . . . . Hunter 1 | . . . . . 1 . . . . . . . Programmer 6 | . . . . . 4 . 2 . . . . . Best Kill Streak 12 | 4 6 6 6 4 12 . 3 . . . . . Combat Bots Only 7 | . 4 6 6 4 7 . 3 . . . . . Max Kills in Single Turn 3 | 1 3 2 1 3 2 . 1 . . . . . Gunslinging 1 | . . . . . 1 . . . . . . . Exploded 3 | . 2 2 . 3 1 . . . . . . . Melee 1 | . . . . . 1 . . . . . . . Uniques/NPCs Destroyed . | . . . . . . . . . . . . . Combat | -11 -10 -9 -8 -7 -7 -7 -5 -5 -5 -4 -4 -4 -------- Run | Yrd Mat Mat Mat Fac Sto Rec Fac Upp Upp Fac Was Fac Hostile Shots Fired 871 | . 28 182 87 17 245 . 162 . . 140 3 7 Missed 265 | . 9 47 12 5 72 . 58 . . 58 3 1 Hits 606 | . 19 135 75 12 173 . 104 . . 82 . 6 Melee 5 | . . . 3 . . . 2 . . . . . Projectile 601 | . 19 135 72 12 173 . 102 . . 82 . 6 Critical Strikes 17 | . . 5 7 . 1 . 3 . . 1 . . Part Disruptions 1 | . . . . . . . . . . . . 1 Damage Taken 9133 | . 273 1706 1225 154 2036 . 2166 . . 1281 . 292 Core 2816 | . 34 352 164 33 194 . 849 . . 977 . 213 Absorbed by Shields . | . . . . . . . . . . . . . Core Remaining (%) 58 | 100 86 12 70 . . 67 . . 15 . . . Volleys Fired 324 | 23 17 132 41 7 76 . 28 . . . . . Largest 3 | 2 2 2 3 3 3 . 3 . . . . . Hottest 183 | 60 100 156 100 155 183 . 120 . . . . . Shots Fired 733 | 41 30 252 111 17 206 . 76 . . . . . Gun 538 | 41 26 208 111 15 137 . . . . . . . Cannon 181 | . . 36 . . 69 . 76 . . . . . Launcher 11 | . 3 6 . 2 . . . . . . . . Special 3 | . 1 2 . . . . . . . . . . Kinetic 421 | 23 13 162 107 5 35 . 76 . . . . . Thermal 259 | 18 14 84 . 5 138 . . . . . . . Explosive 11 | . 3 6 . 2 . . . . . . . . Electromagnetic 42 | . . . 4 5 33 . . . . . . . Robot Hit Streak 27 | 7 6 13 7 2 27 . 17 . . . . . Robot Miss Streak 5 | 3 5 4 2 3 5 . 3 . . . . . Penetration Max . | . . . . . . . . . . . . . Secondary Targets 6 | . . . 4 . 2 . . . . . . . Max Gunslinging Chain 1 | . . . 1 . 1 . . . . . . . Shots Hit Robots 482 | 24 18 167 71 9 142 . 51 . . . . . Core Hits 205 | 7 14 62 21 8 78 . 14 . . 1 . . Critical Kills 3 | . . . 2 . 1 . . . . . . . Critical Parts Destroyed 2 | . . 1 . . 1 . . . . . . . Critical Strikes 11 | . . 1 2 . 5 . 3 . . . . . Burn 3 | . . . . . 3 . . . . . . . Meltdown 1 | . . . . . 1 . . . . . . . Destroy 3 | . . 1 2 . . . . . . . . . Blast 3 | . . . . . . . 3 . . . . . Smash 1 | . . . . . 1 . . . . . . . Melee Attacks 17 | . . 2 2 1 6 . 6 . . . . . Impact 17 | . . 2 2 1 6 . 6 . . . . . Slashing . | . . . . . . . . . . . . . Piercing . | . . . . . . . . . . . . . Sneak Attacks 1 | . . . . . . . 1 . . . . . Combat Hostiles . | . . . . . . . . . . . . . Follow-up Attacks . | . . . . . . . . . . . . . Damage Inflicted 10933 | 266 566 3024 1311 486 3683 . 1595 . . 2 . . Guns 6089 | 266 213 2172 1239 178 2021 . . . . . . . Cannons 3193 | . . 554 . . 1172 . 1467 . . . . . Explosions 1363 | . 353 274 64 308 364 . . . . . . . Melee 254 | . . . . . 126 . 128 . . . . . Ramming 10 | . . . 8 . . . . . . 2 . . Kinetic 5002 | 129 90 1742 1207 20 347 . 1467 . . . . . Thermal 4155 | 137 123 1008 64 80 2743 . . . . . . . Explosive 1051 | . 353 274 . 308 116 . . . . . . . Electromagnetic 461 | . . . 32 78 351 . . . . . . . Impact 254 | . . . . . 126 . 128 . . . . . Slashing . | . . . . . . . . . . . . . Piercing . | . . . . . . . . . . . . . Highest Corruption 6 | . . . . . 2 2 6 6 6 1 1 2 Average Corruption 2 | . . . . . 1 2 4 6 6 1 1 1 Corruption Purged . | . . . . . . . . . . . . . Corruption Blocked . | . . . . . . . . . . . . . Effects 25 | . . . . . 8 4 5 7 1 . . . Message Errors 6 | . . . . . 3 1 . 2 . . . . Matter Fused 7 | . . . . . 1 1 1 3 1 . . . Energy Discharges 5 | . . . . . 1 . 2 2 . . . . Data Loss (minor) 4 | . . . . . 1 1 2 . . . . . Data Loss (major) 3 | . . . . . 2 1 . . . . . . Overload Shots . | . . . . . . . . . . . . . Overflow Damage 344 | . . 3 29 28 122 . 162 . . . . . Projectiles 85 | . . 3 . . 26 . 56 . . . . . Explosions 118 | . . . 29 28 61 . . . . . . . Melee 141 | . . . . . 35 . 106 . . . . . Knockbacks 10 | . . . . . . . 10 . . . . . Impact . | . . . . . . . . . . . . . Kinetic 10 | . . . . . . . 10 . . . . . Secondary . | . . . . . . . . . . . . . Self-Inflicted Damage 341 | . 27 41 4 . 268 . . . . 1 . . Shots 8 | . 1 2 . . 5 . . . . . . . Rammed 3 | . . . 1 . . . 1 . . 1 . . Targets Rammed 3 | . . . 1 . . . 1 . . 1 . . Kicked . | . . . . . . . . . . . . . Crushed . | . . . . . . . . . . . . . Highest Temperature 470 | . 63 174 470 72 321 . 351 . . . . . Average Temperature 90 | . 28 38 180 33 111 . 145 . . . . . Received Heat Transfer 2586 | . 123 660 711 . 681 . 381 . . 30 . . Effects 8 | . . . 5 . . . 3 . . . . . Shutdowns 1 | . . . . . . . 1 . . . . . Energy Bleed 1 | . . . 1 . . . . . . . . . Interference 4 | . . . 3 . . . 1 . . . . . Damage (minor) 2 | . . . 1 . . . 1 . . . . . Siege Activations . | . . . . . . . . . . . . . Martial Activations . | . . . . . . . . . . . . . Shielding Activations . | . . . . . . . . . . . . . Robots Disrupted . | . . . . . . . . . . . . . Combat Hostiles . | . . . . . . . . . . . . . Robots Corrupted . | . . . . . . . . . . . . . Combat Hostiles . | . . . . . . . . . . . . . Parts Fried 1 | . . . . . . . 1 . . . . . Impact Corruptions 4 | . . . . . 1 . 3 . . . . . Robots Melted 1 | . . . . . 1 . . . . . . . Combat Hostiles . | . . . . . . . . . . . . . Parts Melted 14 | . 1 1 . 1 11 . . . . . . . Heat Transferred 7778 | 325 275 2103 50 175 4850 . . . . . . . Parts Sabotaged . | . . . . . . . . . . . . . Parts Stolen . | . . . . . . . . . . . . . Parts Stripped . | . . . . . . . . . . . . . Power Chain Reactions 4 | . . . 1 . 3 . . . . . . . Alert | -11 -10 -9 -8 -7 -7 -7 -5 -5 -5 -4 -4 -4 ------- Run | Yrd Mat Mat Mat Fac Sto Rec Fac Upp Upp Fac Was Fac Maximum Alert Level 2 | . . 1 . . 2 . . . . . . . Low Security (%) 81 | 100 100 97 100 100 27 100 100 . . 100 100 100 Level 1 17 | . . 2 . . 69 . . . . . . . Level 2 . | . . . . . 3 . . . . . . . Level 3 . | . . . . . . . . . . . . . Level 4 . | . . . . . . . . . . . . . Level 5 . | . . . . . . . . . . . . . High Security . | . . . . . . . . . . . . . Max Security . | . . . . . . . . . . . . . Peak Influence 407 | 10 142 205 146 116 407 139 157 . . 14 . . Initial 139 | . . 53 34 . 37 139 . . . . . . Average 96 | 1 70 83 48 21 240 27 51 . . 1 . . Influence Increases 3187 | 30 252 862 317 156 962 24 570 . . 14 . . Destroy 0b10 Robot/C 1540 | . 120 500 200 80 500 . 140 . . . . . Destroy 0b10 Robot/NC 265 | 30 15 100 10 5 85 . 20 . . . . . Destroy Leader 450 | . 32 154 42 12 158 . 52 . . . . . Allied During Kill 19 | . . . . . . . 19 . . . . . Successful Hack 86 | . 5 12 13 18 . 24 . . . 14 . . Disable Machine 210 | . 15 45 45 15 45 . 45 . . . . . Destroy Structure 167 | . 20 36 7 26 54 . 24 . . . . . Partial Spotted 15 | . . . . . 15 . . . . . . . Lose Combat Pursuer 435 | . 45 15 . . 105 . 270 . . . . . Influence Decreases 3187 | 30 125 907 399 73 688 381 462 108 . 14 . . Entered New Map 427 | . . 74 48 . 46 218 . 41 . . . . Time Decay 1765 | 30 125 467 190 73 522 47 230 67 . 14 . . Lost Part 562 | . . 170 90 . 110 . 192 . . . . . Lost Ally 50 | . . . . . 10 . 40 . . . . . Purge Threat 383 | . . 196 71 . . 116 . . . . . . Squads Dispatched 26 | . 1 4 1 1 8 . 6 . . 1 . 4 Investigation 2 | . . 1 . . . . 1 . . . . . Extermination 8 | . . . . 1 4 . 3 . . . . . Reinforcement 16 | . 1 3 1 . 4 . 2 . . 1 . 4 Assault . | . . . . . . . . . . . . . Garrison . | . . . . . . . . . . . . . Intercept . | . . . . . . . . . . . . . Searches Triggered . | . . . . . . . . . . . . . Construction Impeded 1 | . . . . . 1 . . . . . . . Haulers Reinforced 3 | . . . . . 3 . . . . . . . Active Scanning Responses . | . . . . . . . . . . . . . Cargo Convoy Interrupts . | . . . . . . . . . . . . . Stealth | -11 -10 -9 -8 -7 -7 -7 -5 -5 -5 -4 -4 -4 --------- Run | Yrd Mat Mat Mat Fac Sto Rec Fac Upp Upp Fac Was Fac Distress Signals 15 | . 2 4 2 . 3 . 2 . . 1 . 1 Communications Jammed 55 | . . . . . . . 55 . . . . . Distress Signals 52 | . . . . . . . 52 . . . . . Times Spotted 178 | . 11 42 15 7 36 1 40 . . 14 6 6 Peak Tracking Total 13 | . 6 5 8 4 5 1 11 . . 13 6 4 Tactical Retreats 19 | . 2 4 . . 3 . 10 . . . . . ECM-based Alert Blocks 3 | . . 3 . . . . . . . . . . Traps | -11 -10 -9 -8 -7 -7 -7 -5 -5 -5 -4 -4 -4 ------- Run | Yrd Mat Mat Mat Fac Sto Rec Fac Upp Upp Fac Was Fac Traps Triggered 10 | . . 2 1 . 2 . 1 . . 2 . 2 Indirectly . | . . . . . . . . . . . . . Trap Hack Attempts . | . . . . . . . . . . . . . Triggered . | . . . . . . . . . . . . . Disarmed . | . . . . . . . . . . . . . Reprogrammed . | . . . . . . . . . . . . . Reused . | . . . . . . . . . . . . . Traps Extracted . | . . . . . . . . . . . . . Installed . | . . . . . . . . . . . . . Triggered . | . . . . . . . . . . . . . Machines | -11 -10 -9 -8 -7 -7 -7 -5 -5 -5 -4 -4 -4 ---------- Run | Yrd Mat Mat Mat Fac Sto Rec Fac Upp Upp Fac Was Fac Machines Disabled 14 | . 1 3 3 1 3 . 3 . . . . . Max in Single Turn 2 | . 1 1 1 1 2 . 1 . . . . . Machines Repaired . | . . . . . . . . . . . . . Machines Dismantled . | . . . . . . . . . . . . . Machines Sabotaged . | . . . . . . . . . . . . . Overloaded Fab Kills . | . . . . . . . . . . . . . Hacking | -11 -10 -9 -8 -7 -7 -7 -5 -5 -5 -4 -4 -4 --------- Run | Yrd Mat Mat Mat Fac Sto Rec Fac Upp Upp Fac Was Fac Machines Accessed 30 | . 1 7 6 3 2 6 4 . . 1 . . Terminals 26 | . 1 6 5 3 2 6 2 . . 1 . . Fabricators 1 | . . . . . . . 1 . . . . . Repair Stations . | . . . . . . . . . . . . . Recycling Units 1 | . . . 1 . . . . . . . . . Scanalyzers 1 | . . 1 . . . . . . . . . . Garrison Access 1 | . . . . . . . 1 . . . . . Total Hacks 64 | . 2 18 20 4 2 11 6 . . 1 . . Successful 26 | . 1 7 8 2 . 5 2 . . 1 . . Failed 37 | . 1 10 12 2 2 6 4 . . . . . Catastrophic 12 | . . 3 2 1 1 3 2 . . . . . Database Lockouts 1 | . . 1 . . . . . . . . . . Manual 49 | . 2 12 16 4 2 10 2 . . 1 . . Terminals 56 | . 2 15 18 4 2 11 3 . . 1 . . Fabricators 1 | . . . . . . . 1 . . . . . Repair Stations . | . . . . . . . . . . . . . Recycling Units 2 | . . . 2 . . . . . . . . . Scanalyzers 3 | . . 3 . . . . . . . . . . Garrison Access 2 | . . . . . . . 2 . . . . . Terminal Hacks 8 | . . 2 3 . . 2 1 . . . . . Record 2 | . . . 1 . . . 1 . . . . . Branch Access Points 1 | . . . . . . 1 . . . . . . Unreport Threat 4 | . . 2 1 . . 1 . . . . . . Zone Layout 1 | . . . 1 . . . . . . . . . Fabricator Hacks 1 | . . . . . . . 1 . . . . . Network Status 1 | . . . . . . . 1 . . . . . Repair Station Hacks . | . . . . . . . . . . . . . Recycling Unit Hacks 1 | . . . 1 . . . . . . . . . Retrieve Components 1 | . . . 1 . . . . . . . . . Scanalyzer 2 | . . 2 . . . . . . . . . . Retrieve Study 2 | . . 2 . . . . . . . . . . Garrison Access Hacks . | . . . . . . . . . . . . . Unauthorized Hacks 14 | . 1 3 4 2 . 3 . . . 1 . . Terminals 14 | . 1 3 4 2 . 3 . . . 1 . . Assimilate 1 | . . . . 1 . . . . . . . . Botnet 13 | . 1 3 4 1 . 3 . . . 1 . . Fabricators . | . . . . . . . . . . . . . Repair Stations . | . . . . . . . . . . . . . Recycling Units . | . . . . . . . . . . . . . Scanalyzers . | . . . . . . . . . . . . . Garrison Access . | . . . . . . . . . . . . . Data Cores Recovered . | . . . . . . . . . . . . . Used . | . . . . . . . . . . . . . Hacking Detections 25 | . 1 5 6 3 2 5 3 . . . . . Full Trace Events 1 | . . . . . . . 1 . . . . . Feedback Events . | . . . . . . . . . . . . . Feedback Blocked . | . . . . . . . . . . . . . Robot Schematics Acquired . | . . . . . . . . . . . . . Robots Built . | . . . . . . . . . . . . . Authchips . | . . . . . . . . . . . . . Time . | . . . . . . . . . . . . . Total Robot Build Rating . | . . . . . . . . . . . . . Part Schematics Acquired . | . . . . . . . . . . . . . Parts Built . | . . . . . . . . . . . . . Authchips . | . . . . . . . . . . . . . Time . | . . . . . . . . . . . . . Total Part Build Rating . | . . . . . . . . . . . . . Part Studies Acquired 2 | . . 2 . . . . . . . . . . Parts Repaired . | . . . . . . . . . . . . . Time . | . . . . . . . . . . . . . Parts Recycled . | . . . . . . . . . . . . . Recycled Matter . | . . . . . . . . . . . . . Retrieved Matter . | . . . . . . . . . . . . . Retrieved Components 3 | . . . 3 . . . . . . . . . Parts Scanalyzed . | . . . . . . . . . . . . . Part Schematics Acquired . | . . . . . . . . . . . . . Parts Damaged . | . . . . . . . . . . . . . Bothacking | -11 -10 -9 -8 -7 -7 -7 -5 -5 -5 -4 -4 -4 ------------ Run | Yrd Mat Mat Mat Fac Sto Rec Fac Upp Upp Fac Was Fac Used RIF Installer . | . . . . . . . . . . . . . Robots Hacked . | . . . . . . . . . . . . . Non-combat . | . . . . . . . . . . . . . Combat . | . . . . . . . . . . . . . Robot Hacks Applied . | . . . . . . . . . . . . . Relay Couplers Released . | . . . . . . . . . . . . . Fabnet Peak Effective % . | . . . . . . . . . . . . . Robots Rewired 8 | . . . . . . 8 . . . . . . Allies Hacked . | . . . . . . . . . . . . . Hacks Repelled . | . . . . . . . . . . . . . Allies | -11 -10 -9 -8 -7 -7 -7 -5 -5 -5 -4 -4 -4 -------- Run | Yrd Mat Mat Mat Fac Sto Rec Fac Upp Upp Fac Was Fac Total Allies 9 | . . . . 1 . 8 . . . . . . Largest Group 8 | . . . . 1 1 8 5 . . . . . Highest-Rated Group 155 | . . . . 10 10 155 95 . . . . . Highest-Rated Ally 32 | . . . . 10 10 32 30 . . . . . Total Orders . | . . . . . . . . . . . . . Ally Attacks 23 | . . . . . . 2 21 . . . . . Total Damage 500 | . . . . . . 59 441 . . . . . Kills 1 | . . . . . . . 1 . . . . . Allies Corrupted . | . . . . . . . . . . . . . Allies Melted . | . . . . . . . . . . . . . Intel | -11 -10 -9 -8 -7 -7 -7 -5 -5 -5 -4 -4 -4 ------- Run | Yrd Mat Mat Mat Fac Sto Rec Fac Upp Upp Fac Was Fac Active Infowar (turns) 4143 | 11 373 739 338 585 1144 414 425 . . 92 3 19 Optics 25 | . . . 25 . . . . . . . . . Sensors 3618 | . 173 593 338 585 1144 414 371 . . . . . Seismic 303 | 11 200 . . . . . . . . 92 . . Cloaking 22 | . . . . . . . . . . . 3 19 Jamming 202 | . . . . . . . 202 . . . . . ECM 146 | . . 146 . . . . . . . . . . Robot Analysis Total . | . . . . . . . . . . . . . Derelict Logs Recovered 1 | . . . . . . . . . 1 . . . Drone Launches . | . . . . . . . . . . . . . Drone Recoveries . | . . . . . . . . . . . . . Exploration | -11 -10 -9 -8 -7 -7 -7 -5 -5 -5 -4 -4 -4 ------------- Run | Yrd Mat Mat Mat Fac Sto Rec Fac Upp Upp Fac Was Fac Turns Passed 6229 | 149 374 1481 501 585 1451 414 649 217 28 187 117 76 Spaces Moved 4930 | 52 153 828 344 506 857 358 754 421 55 327 164 111 Core 825 | 11 . . 3 . 2 . 146 421 55 178 8 1 Treads 3 | . . . . . 3 . . . . . . . Legs 392 | 41 153 185 13 . . . . . . . . . Wheels 2941 | . . 643 328 506 852 358 254 . . . . . Hover 266 | . . . . . . . . . . . 156 110 Flight 503 | . . . . . . . 354 . . 149 . . Fastest Speed 40 | 50 120 70 76 83 70 85 40 50 50 45 50 40 Average Speed 82 | 139 120 106 90 95 95 85 61 50 50 50 62 55 Slowest Speed 600 | 250 120 260 450 120 600 85 145 50 50 100 160 160 Overloaded Moves . | . . . . . . . . . . . . . Propulsion Burnouts . | . . . . . . . . . . . . . Robots Hopped 9 | . . . . . . . 6 . . 3 . . Potential Cave-ins . | . . . . . . . . . . . . . Cave-ins Triggered . | . . . . . . . . . . . . . Exploration Rate (%) 38 | 4 37 74 31 17 70 75 21 65 12 13 71 6 Regions Visited 12 Branch Regions 4 Pre-discovered Areas . | . . . . . . . . . . . . . Known Exits Taken 8 | . . 1 1 1 1 1 1 1 1 . . . Unknown Exits Taken 2 | 1 1 . . . . . . . . . . . Scrap Searched 2 | . . . . . . . . 1 1 . . . Spaces Dug 4 | . . . 2 . . . 2 . . . . . Terrain Destroyed 141 | . 18 26 5 31 52 . 9 . . . . . Melee 4 | . . . 2 . . . 2 . . . . . Projectile 31 | . . . . . 24 . 7 . . . . . AOE 106 | . 18 26 3 31 28 . . . . . . . Terrain Rammed . | . . . . . . . . . . . . . Walls Destroyed . | . . . . . . . . . . . . . Machines Disabled . | . . . . . . . . . . . . . Actions | -11 -10 -9 -8 -7 -7 -7 -5 -5 -5 -4 -4 -4 --------- Run | Yrd Mat Mat Mat Fac Sto Rec Fac Upp Upp Fac Was Fac Total 6395 | 84 310 1185 463 591 1310 467 864 426 54 342 176 123 Wait 761 | . 131 144 40 51 296 25 52 3 . 9 7 3 Move 4903 | 51 152 827 343 505 856 357 743 420 54 321 163 111 Hop 7 | . . . . . . . 4 . . 3 . . Pick Up 47 | 3 4 17 4 6 8 . 4 . . 1 . . Fast Attach 82 | 7 . 11 7 4 24 2 11 1 . 6 4 5 Attach 49 | . 1 15 12 3 8 . 6 1 . . . 3 Detach 21 | . 1 5 5 4 1 . 1 1 . 1 1 1 Swap 37 | . 4 15 4 5 7 . 2 . . . . . Drop 54 | . . 17 4 5 20 2 5 . . . 1 . Fire 324 | 23 17 132 41 7 76 . 28 . . . . . Melee 17 | . . 2 2 1 6 . 6 . . . . . Ram 3 | . . . 1 . . . 1 . . 1 . . Kick . | . . . . . . . . . . . . . Crush . | . . . . . . . . . . . . . Escape Stasis 8 | . . . . . 8 . . . . . . . Rewire 82 | . . . . . . 81 1 . . . . . Trap . | . . . . . . . . . . . . . Miscellaneous . | . . . . . . . . . . . . . Route ------- -11/Scrapyard -10/Materials (discovered 2 exits: *Mat / [*Min]) -9/Materials (discovered 3 exits: *Mat / *Min x2) -8/Materials -7/Factory (discovered 2 exits: *Sto / *Low) -7/Storage -7/Recycling -5/Factory -5/Upper Caves -5/Upper Caves -4/Factory -4/Waste -4/Factory History --------- Turn | Location | Event 2 | -11/Scrapyard | Met Revision 17 32 | -11/Scrapyard | Discovered new exit (range 15) 150 | -11/Scrapyard | Entered Materials 313 | -10/Materials | Build established: Mutant 328 | -10/Materials | Discovered new exit (range 16) 483 | -10/Materials | Discovered new exit (range 10) 524 | -10/Materials | Entered another Materials area 524 | -9/Materials | Evolved 2 slots: Propulsion x1, Utility x1 885 | -9/Materials | Lost 6 parts (1p1n4w) 961 | -9/Materials | Core integrity fell below 50% 1099 | -9/Materials | Lost 4 parts (1p1n1u1w) 1359 | -9/Materials | Build established: Scavenger-Mutant 1386 | -9/Materials | Discovered new exit (range 16) 1415 | -9/Materials | Discovered new exit (range 14) 1427 | -9/Materials | Identified exit to Mines 1611 | -9/Materials | Central database locked down 1734 | -9/Materials | Core integrity fell below 20% 1762 | -9/Materials | Lost 4 parts (1p2n1u) 2001 | -9/Materials | Discovered new exit (range 3) 2002 | -9/Materials | Identified exit to Materials 2005 | -9/Materials | Entered another Materials area 2005 | -8/Materials | Evolved 2 slots: Utility x1, Weapon x1 2213 | -8/Materials | Lost 3 parts (1n1u1w) 2302 | -8/Materials | Lost 6 parts (1p3n1u1w) 2429 | -8/Materials | Discovered new exit (range 7) 2433 | -8/Materials | Identified exit to Factory 2506 | -8/Materials | Entered Factory 2506 | -7/Factory | Evolved 2 slots: Utility x2 2893 | -7/Factory | Build established: Skirmisher 2972 | -7/Factory | Discovered new exit (range 14) 3004 | -7/Factory | Identified exit to Lower Caves 3081 | -7/Factory | Discovered new exit (range 10) 3089 | -7/Factory | Identified exit to Storage 3091 | -7/Factory | Entered Storage 3091 | -7/Storage | Accompanied by 1 ally 3509 | -7/Storage | Lost 3 parts (2u1w) 3968 | -7/Storage | Lost 3 parts (1p1n1u) 4000 | -7/Storage | Destroyed 7 combat bots 4401 | -7/Storage | Met 01-MTF 4508 | -7/Storage | Build established: Scavenger-Skirmisher 4537 | -7/Storage | Discovered new exit (range 7) 4541 | -7/Storage | Identified exit to Recycling 4542 | -7/Storage | Entered Recycling 4542 | -7/Recycling | Accompanied by 1 ally (01-MTF) 4543 | -7/Recycling | Met a Zionite searching for Scraptown 4917 | -7/Recycling | Discovered new exit (range 16) 4934 | -7/Recycling | Identified exit to Factory 4956 | -7/Recycling | Entered Factory 4956 | -5/Factory | Accompanied by 5 allies 4956 | -5/Factory | Evolved 4 slots: Power x1, Utility x3 5043 | -5/Factory | Build established: Commander-Skirmisher 5321 | -5/Factory | Released all parts (6) 5349 | -5/Factory | Lost 12 parts (3p4n4u1w) 5528 | -5/Factory | Core integrity fell below 50% 5585 | -5/Factory | Lost 5 parts (1n4u) 5596 | -5/Factory | Core integrity fell below 20% 5597 | -5/Factory | Discovered new exit (range 15) 5604 | -5/Factory | Identified exit to Upper Caves 5605 | -5/Factory | Entered Upper Caves 5617 | -5/Upper Caves | Encountered a Warlord checkpoint 5819 | -5/Upper Caves | Discovered new exit (range 6) 5821 | -5/Upper Caves | Identified exit to Upper Caves 5822 | -5/Upper Caves | Entered another Upper Caves area 5823 | -5/Upper Caves | Encountered a Warlord checkpoint 5842 | -5/Upper Caves | Learned Factory stockpile data 5844 | -5/Upper Caves | Discovered new exit (range 5) 5849 | -5/Upper Caves | Identified exit to Factory 5850 | -5/Upper Caves | Entered Factory 5850 | -4/Factory | Evolved 2 slots: Propulsion x2 5963 | -4/Factory | Spotted B-86 Titan 6022 | -4/Factory | Core integrity fell below 50% 6035 | -4/Factory | Core integrity fell below 20% 6037 | -4/Factory | Sucked down chute 6037 | -4/Factory | Entered Waste 6066 | -4/Waste | Lost 4 parts (2n1u1w) 6083 | -4/Waste | Spotted C-40 Crusher 6083 | -4/Waste | Spotted C-40 Crusher 6083 | -4/Waste | Spotted C-40 Crusher 6084 | -4/Waste | Spotted C-40 Crusher 6086 | -4/Waste | Spotted C-40 Crusher 6128 | -4/Waste | Spotted C-40 Crusher 6138 | -4/Waste | Discovered new exit (range 16) 6146 | -4/Waste | Identified exit to Factory 6150 | -4/Waste | Found Prototype Device 6150 | -4/Waste | Identified Exp. Shield Generator 6154 | -4/Waste | Entered Factory 6230 | -4/Factory | Destroyed by H-71 Marshal with Heavy Mass Driver Last Messages --------------- 06203_ Massive razor-sharp blades shoot up from within the floor. 06203_ Adv. System Shield severed. 06203_ Lgt. Particle Reactor severed. 06203_ Cmb. Linear Gravjet severed. 06206_ Acquired Imp. Linear Gravjet. 06207_ ALERT: Hostiles spotted, dispatching reinforcements to Terminal F010. 06208_ Acquired Imp. Cloaking Device. 06210_ Acquired Cmb. Linear Gravjet. 06212_ U-05 Engineer lays Concrete. 06215_ Acquired Lgt. Particle Reactor. 06220_ P-70 Sage resets R-10 Processor, system corruption cleaned. 06223_ ALERT: Suspicious intruders detected, dispatching Cutter reinforcements to area. 06226_ Lgt. Particle Reactor destroyed. 06226_ Imp. Cloaking Device destroyed. 06228_ Knocked back. [Achievement: Achiever] Map ----- +----------------------------------------------------+ | # #??????????????????????????????????????????? | | # ###########????????????????????????????????? | | # # #????????????????????????????????? | | # # #????????????????????????????????? | | # # #????????????????????????????????? | | # + #????????????????????????????????? | | # # """""" #?#??????????????????????????????? | | # # """""" # #??????????????????????????????? | | # # """""" # #????? ????????????????????????? | | # # """"""?? #???? ???????????????????????? | | # ########### #### ???????????????????????? | | # ??????????????????????? | | # ??????????????????????? | | # !/ ??????????????????????? | | # !/ ?????????????????????? | | # / ?????????????????????? | | # ^ ?????????????????????? | | # ?????????????????????? | | """ ?????????????????????? | | ## T######### """ ####???????????????????????? | | ?###????????# """ #??????????????????????????? | | ????????????# #??????????????????????????? | | ????????????# #??????????????????????????? | | ?????########/####### #??????????????????????????? | | ?????# ### #######????????????????????? | | ?????# T """" #] @ #????????????????????? | | ?????# """" # [ %###+###??????????????? | | ?????# """" # % m ???????????? | | ?????# """" # ???????????? | | ?????# + H ???????????? | | ?????# """" """" # ???????????? | | ?????# """" """" # ???????????? | | ?????# """" """" # ###+#######??????????? | | ?????# """" """" # #????????????????????? | | ?????# ? ###########????????????????????? | | ???????? #??????????????????????????????? | | ????????###########??????????????????????????????? | | ?????????????????????????????????????????????????? | | ?????????????????????????????????????????????????? | | ?????????????????????????????????????????????????? | | ?????????????????????????????????????????????????? | | ?????????????????????????????????????????????????? | | ?????????????????????????????????????????????????? | | ?????????????????????????????????????????????????? | | ?????????????????????????????????????????????????? | | ?????????????????????????????????????????????????? | | ?????????????????????????????????????????????????? | | ?????????????????????????????????????????????????? | | ?????????????????????????????????????????????????? | | ?????????????????????????????????????????????????? | +----------------------------------------------------+ Best States ------------- Heat Dissipation 62 Energy Generation 28 Energy Capacity 375 Matter Stores 500 Matter Capacity 500 Sight Range 18 Robot Scan Range 15 Terrain Scan Density 10 ECM Strength 1 Jamming Range 14 Cloak Strength 3 Additional Mass Support 6 Armor Coverage 600 Weapon Cycling 15 Evasion (%) 62 Targeting Accuracy 8 Recoil Reduction 1 Kinecelleration 30 Offensive Hacking 24 Defensive Hacking 24 Item Schematics ----------------- None Robot Schematics ------------------ None Fabricated ------------ Nothing Repaired ---------- Nothing Studied --------- Com. Wheel | -9/Materials | Hacked Wheel | -9/Materials | Hacked Alien Tech Used ----------------- None Achievements -------------- Achiever Total Silence Universal Adapter \\IAMDERELICT Challenges ------------ None Game ------ Seed ModifiedForceEngine Manual? 0 Play Time 01:24:24 Cumulative 28.7 hours Start 2026.01.22 @ 17:33:45 End 2026.01.22 @ 19:20:09 Sessions 1 Manual Loads 0 Difficulty Rogue Special Mode None Game No. 33 Rogue 33 Adventurer 0 Explorer 0 Win Type - Total 0 Types 0/0/0/0/0/0/0/0/0/0 Lore% 24 Gallery% 28 Achievement% 25 Wizard Run 0 Options --------- Layout 1 ASCII 0 Keyboard 1 Movement Numpad Keybinds 0 Fullscreen 1 Font 24/Smallcaps Map View 50x35 Zoom Use 0% Tactical HUD 1 Map Filters NONE Filters NONE Steam 1 RUN: 16b2fc96-fa06-4c1f-b051-312937da0bfc